[Event "Titled Tuesday Blitz June 22 2021"]
[White "Visakh N R"]
[Black "Tanenbaum, Zachary"]
[WhiteFideId "25012223"]
[BlackFideId "2060850"]
[WhiteElo "2428"]
[BlackElo "2165"]
[Result "1-0"]
[Round "07"]
[TimeControl "180+1"]
[Date "2021.06.22"]
[WhiteClock "0:00:19"]
[BlackClock "0:00:05"]

1. e4 {[%clk 0:03:00]}  e5 {[%clk 0:03:00]} 2. Nf3 {[%clk 0:03:01]}  Nc6 {[%clk 0:03:00]} 3. Bb5 {[%clk 0:03:00]}  a6 {[%clk 0:03:01]} 4. Ba4 {[%clk 0:03:00]}  d6 {[%clk 0:03:01]} 5. d4 {[%clk 0:02:52]}  b5 {[%clk 0:03:00]} 6. Bb3 {[%clk 0:02:52]}  Nxd4 {[%clk 0:03:01]} 7. Nxd4 {[%clk 0:02:53]}  exd4 {[%clk 0:03:02]} 8. c3 {[%clk 0:02:53]}  dxc3 {[%clk 0:03:02]} 9. Qh5 {[%clk 0:02:49]}  g6 {[%clk 0:03:02]} 10. Qd5 {[%clk 0:02:49]}  Be6 {[%clk 0:03:02]} 11. Qc6+ {[%clk 0:02:49]}  Bd7 {[%clk 0:03:02]} 12. Qxc3 {[%clk 0:02:48]}  Nf6 {[%clk 0:03:03]} 13. Bg5 {[%clk 0:02:07]}  Bg7 {[%clk 0:03:03]} 14. e5 {[%clk 0:01:45]}  dxe5 {[%clk 0:02:58]} 15. Qxe5+ {[%clk 0:01:28]}  Qe7 {[%clk 0:02:58]} 16. Qxe7+ {[%clk 0:01:29]}  Kxe7 {[%clk 0:02:59]} 17. Nc3 {[%clk 0:01:30]}  Rhe8 {[%clk 0:02:52]} 18. O-O-O {[%clk 0:01:28]}  Bc6 {[%clk 0:02:37]} 19. Bd5 {[%clk 0:01:26]}  b4 {[%clk 0:01:13]} 20. Bxc6 {[%clk 0:01:13]}  bxc3 {[%clk 0:01:13]} 21. bxc3 {[%clk 0:01:14]}  Kf8 {[%clk 0:01:10]} 22. Bxa8 {[%clk 0:01:11]}  Rxa8 {[%clk 0:01:11]} 23. Bxf6 {[%clk 0:01:08]}  Bxf6 {[%clk 0:01:11]} 24. Kc2 {[%clk 0:01:09]}  Be5 {[%clk 0:01:05]} 25. h4 {[%clk 0:01:02]}  h6 {[%clk 0:00:47]} 26. Rd5 {[%clk 0:00:48]}  Bd6 {[%clk 0:00:46]} 27. Ra5 {[%clk 0:00:48]}  Ke7 {[%clk 0:00:35]} 28. g3 {[%clk 0:00:28]}  Kd7 {[%clk 0:00:28]} 29. Re1 {[%clk 0:00:28]}  h5 {[%clk 0:00:20]} 30. Ra4 {[%clk 0:00:26]}  Kc6 {[%clk 0:00:19]} 31. Rc4+ {[%clk 0:00:26]}  Kb5 {[%clk 0:00:17]} 32. Rd4 {[%clk 0:00:24]}  Kc6 {[%clk 0:00:16]} 33. Rc4+ {[%clk 0:00:24]}  Kb5 {[%clk 0:00:16]} 34. Kd3 {[%clk 0:00:24]}  Rd8 {[%clk 0:00:15]} 35. Rb1+ {[%clk 0:00:23]}  Ka5 {[%clk 0:00:10]} 36. Kc2 {[%clk 0:00:22]}  Be5 {[%clk 0:00:07]} 37. Rb7 {[%clk 0:00:20]}  Bd6 {[%clk 0:00:07]} 38. Kb3 {[%clk 0:00:20]}  Bb4 {[%clk 0:00:05]} 39. cxb4# {[%clk 0:00:19]} 1-0


[Site "https://www.chess.com"]

[Event "Titled Tuesday Blitz June 22 2021"]
[White "Donchenko, Alexander"]
[Black "Hansen, Eric"]
[WhiteFideId "24603295"]
[BlackFideId "2606771"]
[WhiteElo "2553"]
[BlackElo "2568"]
[Result "0-1"]
[Round "08"]
[TimeControl "180+1"]
[Date "2021.06.22"]
[WhiteClock "0:00:20"]
[BlackClock "0:00:24"]

1. Nf3 {[%clk 0:03:00]}  d5 {[%clk 0:02:57]} 2. d4 {[%clk 0:03:01]}  Nf6 {[%clk 0:02:56]} 3. c4 {[%clk 0:03:01]}  e6 {[%clk 0:02:57]} 4. g3 {[%clk 0:03:01]}  Bb4+ {[%clk 0:02:51]} 5. Bd2 {[%clk 0:03:01]}  Bd6 {[%clk 0:02:50]} 6. Bg2 {[%clk 0:03:00]}  O-O {[%clk 0:02:49]} 7. O-O {[%clk 0:02:59]}  c6 {[%clk 0:02:50]} 8. Nc3 {[%clk 0:02:56]}  Nbd7 {[%clk 0:02:48]} 9. b3 {[%clk 0:02:53]}  Ne4 {[%clk 0:02:44]} 10. Nxe4 {[%clk 0:02:47]}  dxe4 {[%clk 0:02:43]} 11. Ng5 {[%clk 0:02:47]}  e5 {[%clk 0:02:42]} 12. Nxe4 {[%clk 0:02:47]}  Be7 {[%clk 0:02:39]} 13. dxe5 {[%clk 0:02:37]}  Nxe5 {[%clk 0:02:38]} 14. Bc3 {[%clk 0:02:37]}  Qc7 {[%clk 0:02:38]} 15. Qd2 {[%clk 0:02:33]}  Rd8 {[%clk 0:02:33]} 16. Qf4 {[%clk 0:02:32]}  f6 {[%clk 0:02:34]} 17. Rfd1 {[%clk 0:02:27]}  Be6 {[%clk 0:02:33]} 18. h4 {[%clk 0:02:24]}  h6 {[%clk 0:02:29]} 19. Bd4 {[%clk 0:02:03]}  a5 {[%clk 0:02:26]} 20. Nc5 {[%clk 0:01:54]}  Bf7 {[%clk 0:02:22]} 21. Nd3 {[%clk 0:01:50]}  Bd6 {[%clk 0:01:48]} 22. Bxe5 {[%clk 0:01:45]}  fxe5 {[%clk 0:01:44]} 23. Qe3 {[%clk 0:01:45]}  Qe7 {[%clk 0:01:43]} 24. Be4 {[%clk 0:01:40]}  a4 {[%clk 0:01:42]} 25. Rdb1 {[%clk 0:01:18]}  Bb8 {[%clk 0:01:21]} 26. Kg2 {[%clk 0:01:12]}  Rd4 {[%clk 0:01:19]} 27. Rc1 {[%clk 0:01:03]}  Ba7 {[%clk 0:01:18]} 28. c5 {[%clk 0:00:52]}  Rxe4 {[%clk 0:01:18]} 29. Qxe4 {[%clk 0:00:39]}  Bd5 {[%clk 0:01:18]} 30. Rc4 {[%clk 0:00:37]}  Rf8 {[%clk 0:00:55]} 31. Rxa4 {[%clk 0:00:34]}  Bxc5 {[%clk 0:00:53]} 32. Rd1 {[%clk 0:00:23]}  Bd4 {[%clk 0:00:47]} 33. Qxd5+ {[%clk 0:00:21]}  cxd5 {[%clk 0:00:47]} 34. e3 {[%clk 0:00:21]}  Bb6 {[%clk 0:00:36]} 35. Nb4 {[%clk 0:00:21]}  Qf7 {[%clk 0:00:34]} 36. Rd2 {[%clk 0:00:21]}  d4 {[%clk 0:00:28]} 37. exd4 {[%clk 0:00:19]}  Bxd4 {[%clk 0:00:26]} 38. Nd3 {[%clk 0:00:20]}  Bc3 {[%clk 0:00:24]} 0-1


[Site "https://www.chess.com"]

[Event "Titled Tuesday Blitz June 22 2021"]
[White "Firat, Burak"]
[Black "Shevchenko, Kirill"]
[WhiteFideId "6305881"]
[BlackFideId "14129574"]
[WhiteElo "2531"]
[BlackElo "2569"]
[Result "0-1"]
[Round "08"]
[TimeControl "180+1"]
[Date "2021.06.22"]
[WhiteClock "0:00:18"]
[BlackClock "0:00:23"]

1. e4 {[%clk 0:03:00]}  c5 {[%clk 0:02:58]} 2. Nf3 {[%clk 0:03:01]}  g6 {[%clk 0:02:57]} 3. c3 {[%clk 0:02:59]}  Bg7 {[%clk 0:02:56]} 4. d4 {[%clk 0:02:59]}  cxd4 {[%clk 0:02:57]} 5. cxd4 {[%clk 0:03:00]}  d5 {[%clk 0:02:58]} 6. e5 {[%clk 0:03:01]}  a6 {[%clk 0:02:58]} 7. h3 {[%clk 0:02:56]}  Nc6 {[%clk 0:02:58]} 8. Nbd2 {[%clk 0:02:45]}  f6 {[%clk 0:02:56]} 9. exf6 {[%clk 0:02:34]}  Nxf6 {[%clk 0:02:56]} 10. Bd3 {[%clk 0:02:32]}  O-O {[%clk 0:02:56]} 11. Nb3 {[%clk 0:02:28]}  Ne4 {[%clk 0:02:24]} 12. Be3 {[%clk 0:02:28]}  a5 {[%clk 0:02:21]} 13. Rc1 {[%clk 0:02:18]}  a4 {[%clk 0:01:59]} 14. Nc5 {[%clk 0:02:18]}  Bf5 {[%clk 0:01:58]} 15. Nxe4 {[%clk 0:01:59]}  Bxe4 {[%clk 0:01:43]} 16. Bxe4 {[%clk 0:01:51]}  dxe4 {[%clk 0:01:44]} 17. Ng5 {[%clk 0:01:50]}  Bxd4 {[%clk 0:01:34]} 18. Bxd4 {[%clk 0:01:29]}  Nxd4 {[%clk 0:01:30]} 19. Nxe4 {[%clk 0:01:12]}  Qd5 {[%clk 0:01:22]} 20. f3 {[%clk 0:01:08]}  Rad8 {[%clk 0:01:11]} 21. Qxa4 {[%clk 0:01:05]}  b5 {[%clk 0:00:47]} 22. Qa7 {[%clk 0:00:44]}  Nxf3+ {[%clk 0:00:32]} 23. gxf3 {[%clk 0:00:45]}  Rxf3 {[%clk 0:00:32]} 24. Qxe7 {[%clk 0:00:37]}  Re3+ {[%clk 0:00:29]} 25. Kf1 {[%clk 0:00:22]}  Rxe4 {[%clk 0:00:28]} 26. Qc5 {[%clk 0:00:23]}  Rf8+ {[%clk 0:00:24]} 27. Kg1 {[%clk 0:00:21]}  Re1+ {[%clk 0:00:24]} 28. Kh2 {[%clk 0:00:19]}  Re2+ {[%clk 0:00:23]} 29. Kg3 {[%clk 0:00:19]}  Qg2+ {[%clk 0:00:23]} 30. Kh4 {[%clk 0:00:18]}  Rf4# {[%clk 0:00:23]} 0-1


[Site "https://www.chess.com"]

[Event "Titled Tuesday Blitz June 22 2021"]
[White "Gabrielian, Artur"]
[Black "Kretov, Evgenij"]
[WhiteFideId "4131002"]
[BlackFideId "4167821"]
[WhiteElo "2539"]
[BlackElo "2400"]
[Result "1-0"]
[Round "08"]
[TimeControl "180+1"]
[Date "2021.06.22"]
[WhiteClock "0:00:59"]
[BlackClock "0:00:57"]

1. e4 {[%clk 0:03:00]}  c5 {[%clk 0:02:59]} 2. Nc3 {[%clk 0:03:00]}  Nc6 {[%clk 0:02:59]} 3. Bb5 {[%clk 0:03:00]}  Nd4 {[%clk 0:02:59]} 4. Bc4 {[%clk 0:03:00]}  g6 {[%clk 0:03:00]} 5. Nf3 {[%clk 0:03:00]}  e6 {[%clk 0:03:00]} 6. Nxd4 {[%clk 0:02:59]}  cxd4 {[%clk 0:03:00]} 7. Ne2 {[%clk 0:03:00]}  Bg7 {[%clk 0:03:00]} 8. c3 {[%clk 0:02:54]}  dxc3 {[%clk 0:03:00]} 9. dxc3 {[%clk 0:02:55]}  Ne7 {[%clk 0:02:57]} 10. O-O {[%clk 0:02:54]}  O-O {[%clk 0:02:53]} 11. Bg5 {[%clk 0:02:53]}  h6 {[%clk 0:02:52]} 12. Bh4 {[%clk 0:02:53]}  g5 {[%clk 0:02:50]} 13. Bg3 {[%clk 0:02:53]}  d5 {[%clk 0:02:48]} 14. exd5 {[%clk 0:02:51]}  Nxd5 {[%clk 0:02:45]} 15. Qb3 {[%clk 0:02:29]}  Qb6 {[%clk 0:02:34]} 16. Bxd5 {[%clk 0:02:26]}  exd5 {[%clk 0:02:34]} 17. Qxb6 {[%clk 0:02:26]}  axb6 {[%clk 0:02:34]} 18. Rfd1 {[%clk 0:02:24]}  Be6 {[%clk 0:02:28]} 19. a3 {[%clk 0:02:15]}  Rac8 {[%clk 0:02:21]} 20. f3 {[%clk 0:02:12]}  Rfd8 {[%clk 0:02:15]} 21. Bf2 {[%clk 0:02:11]}  Rd6 {[%clk 0:02:08]} 22. Bd4 {[%clk 0:02:11]}  f6 {[%clk 0:02:05]} 23. Rd2 {[%clk 0:02:06]}  Kf7 {[%clk 0:02:05]} 24. Re1 {[%clk 0:02:05]}  Bf8 {[%clk 0:02:04]} 25. Bf2 {[%clk 0:02:03]}  Bd7 {[%clk 0:01:56]} 26. Nd4 {[%clk 0:02:02]}  f5 {[%clk 0:01:53]} 27. Rde2 {[%clk 0:01:53]}  f4 {[%clk 0:01:49]} 28. h4 {[%clk 0:01:45]}  Re8 {[%clk 0:01:47]} 29. Rxe8 {[%clk 0:01:45]}  Bxe8 {[%clk 0:01:47]} 30. hxg5 {[%clk 0:01:43]}  hxg5 {[%clk 0:01:47]} 31. Re5 {[%clk 0:01:42]}  Rg6 {[%clk 0:01:35]} 32. Rxd5 {[%clk 0:01:37]}  g4 {[%clk 0:01:35]} 33. Rf5+ {[%clk 0:01:36]}  Kg8 {[%clk 0:01:33]} 34. Rxf4 {[%clk 0:01:36]}  gxf3 {[%clk 0:01:32]} 35. Rxf3 {[%clk 0:01:33]}  Bc5 {[%clk 0:01:30]} 36. Nf5 {[%clk 0:01:14]}  Re6 {[%clk 0:01:16]} 37. Bxc5 {[%clk 0:01:11]}  bxc5 {[%clk 0:01:15]} 38. Re3 {[%clk 0:01:11]}  Rxe3 {[%clk 0:01:12]} 39. Nxe3 {[%clk 0:01:11]}  Kf7 {[%clk 0:01:13]} 40. Kf2 {[%clk 0:01:09]}  Ke6 {[%clk 0:01:13]} 41. Ke2 {[%clk 0:01:08]}  Ke5 {[%clk 0:01:13]} 42. Kd3 {[%clk 0:01:08]}  Bf7 {[%clk 0:01:10]} 43. b4 {[%clk 0:01:05]}  cxb4 {[%clk 0:01:09]} 44. cxb4 {[%clk 0:01:00]}  Kf4 {[%clk 0:01:09]} 45. Nc4 {[%clk 0:00:59]}  Kg3 {[%clk 0:01:06]} 46. Nd6 {[%clk 0:00:59]}  Bd5 {[%clk 0:01:06]} 47. Kd4 {[%clk 0:01:00]}  Bxg2 {[%clk 0:01:04]} 48. a4 {[%clk 0:01:00]}  Kf4 {[%clk 0:01:04]} 49. a5 {[%clk 0:00:59]}  Kg5 {[%clk 0:01:00]} 50. Kc5 {[%clk 0:00:59]}  Kf6 {[%clk 0:00:57]} 51. Kb6 {[%clk 0:00:59]}  Ke5 {[%clk 0:00:57]} 52. Nxb7 {[%clk 0:00:59]} 1-0


[Site "https://www.chess.com"]

[Event "Titled Tuesday Blitz June 22 2021"]
[White "Gevorgyan, David Sh."]
[Black "Izoria, Zviad"]
[WhiteFideId "13303244"]
[BlackFideId "13601733"]
[WhiteElo "2255"]
[BlackElo "2626"]
[Result "0-1"]
[Round "08"]
[TimeControl "180+1"]
[Date "2021.06.22"]
[WhiteClock "0:00:01"]
[BlackClock "0:00:20"]

1. d4 {[%clk 0:03:00]}  Nf6 {[%clk 0:02:59]} 2. c4 {[%clk 0:03:01]}  g6 {[%clk 0:02:59]} 3. Nc3 {[%clk 0:03:01]}  Bg7 {[%clk 0:02:58]} 4. e4 {[%clk 0:03:01]}  d6 {[%clk 0:02:59]} 5. Be2 {[%clk 0:03:01]}  Nbd7 {[%clk 0:02:54]} 6. Be3 {[%clk 0:03:01]}  e5 {[%clk 0:02:53]} 7. d5 {[%clk 0:03:01]}  Nc5 {[%clk 0:02:53]} 8. f3 {[%clk 0:03:01]}  a5 {[%clk 0:02:53]} 9. g4 {[%clk 0:02:59]}  h5 {[%clk 0:02:51]} 10. g5 {[%clk 0:03:00]}  Nh7 {[%clk 0:02:51]} 11. h4 {[%clk 0:03:00]}  f6 {[%clk 0:02:51]} 12. Qd2 {[%clk 0:02:57]}  fxg5 {[%clk 0:02:51]} 13. hxg5 {[%clk 0:02:56]}  O-O {[%clk 0:02:51]} 14. Nh3 {[%clk 0:02:30]}  Bxh3 {[%clk 0:02:39]} 15. Rxh3 {[%clk 0:02:31]}  a4 {[%clk 0:02:39]} 16. O-O-O {[%clk 0:02:24]}  Qe7 {[%clk 0:02:34]} 17. Rg1 {[%clk 0:02:19]}  Rf4 {[%clk 0:02:28]} 18. Rhg3 {[%clk 0:02:05]}  Raf8 {[%clk 0:02:12]} 19. Bd1 {[%clk 0:01:58]}  Qd7 {[%clk 0:02:08]} 20. Bxc5 {[%clk 0:01:52]}  dxc5 {[%clk 0:02:07]} 21. Bxa4 {[%clk 0:01:52]}  Qe7 {[%clk 0:01:54]} 22. Bd1 {[%clk 0:01:27]}  h4 {[%clk 0:01:52]} 23. Rg4 {[%clk 0:01:24]}  Rxg4 {[%clk 0:01:39]} 24. Rxg4 {[%clk 0:01:24]}  Rf4 {[%clk 0:01:12]} 25. d6 {[%clk 0:00:29]}  Qxd6 {[%clk 0:01:05]} 26. Nd5 {[%clk 0:00:28]}  Rxg4 {[%clk 0:00:58]} 27. fxg4 {[%clk 0:00:29]}  Qd8 {[%clk 0:00:53]} 28. Qa5 {[%clk 0:00:08]}  Nxg5 {[%clk 0:00:51]} 29. Qxc5 {[%clk 0:00:05]}  h3 {[%clk 0:00:32]} 30. Qf2 {[%clk 0:00:03]}  Qf8 {[%clk 0:00:24]} 31. Qh2 {[%clk 0:00:01]}  c6 {[%clk 0:00:23]} 32. Ne3 {[%clk 0:00:01]}  Qf4 {[%clk 0:00:20]} 0-1


[Site "https://www.chess.com"]

[Event "Titled Tuesday Blitz June 22 2021"]
[White "Jobava, Baadur"]
[Black "Srihari L R"]
[WhiteFideId "13601520"]
[BlackFideId "46617116"]
[WhiteElo "2748"]
[BlackElo "2121"]
[Result "0-1"]
[Round "08"]
[TimeControl "180+1"]
[Date "2021.06.22"]
[WhiteClock "0:00:15"]
[BlackClock "0:00:05"]

1. d4 {[%clk 0:03:00]}  d5 {[%clk 0:02:59]} 2. Nc3 {[%clk 0:03:01]}  Nf6 {[%clk 0:02:58]} 3. Bf4 {[%clk 0:03:01]}  c6 {[%clk 0:02:57]} 4. e3 {[%clk 0:03:01]}  Bf5 {[%clk 0:02:54]} 5. f3 {[%clk 0:03:01]}  h6 {[%clk 0:02:43]} 6. Bd3 {[%clk 0:03:00]}  Bxd3 {[%clk 0:02:42]} 7. Qxd3 {[%clk 0:03:01]}  e6 {[%clk 0:02:43]} 8. Nge2 {[%clk 0:03:00]}  Bd6 {[%clk 0:02:42]} 9. O-O-O {[%clk 0:02:59]}  Bxf4 {[%clk 0:02:40]} 10. exf4 {[%clk 0:02:59]}  Nbd7 {[%clk 0:02:35]} 11. Qe3 {[%clk 0:02:58]}  g6 {[%clk 0:02:30]} 12. Kb1 {[%clk 0:02:58]}  Qc7 {[%clk 0:02:24]} 13. Nc1 {[%clk 0:02:58]}  O-O-O {[%clk 0:02:24]} 14. Nd3 {[%clk 0:02:57]}  Ne8 {[%clk 0:02:23]} 15. h4 {[%clk 0:02:55]}  h5 {[%clk 0:02:23]} 16. Ne5 {[%clk 0:02:50]}  Nd6 {[%clk 0:02:21]} 17. g4 {[%clk 0:02:50]}  Nb6 {[%clk 0:02:13]} 18. b3 {[%clk 0:02:49]}  Kb8 {[%clk 0:02:12]} 19. Ne2 {[%clk 0:02:47]}  Rc8 {[%clk 0:02:08]} 20. Nc1 {[%clk 0:02:45]}  Nb5 {[%clk 0:02:01]} 21. a4 {[%clk 0:02:43]}  Nd6 {[%clk 0:02:01]} 22. Ncd3 {[%clk 0:02:42]}  Rcg8 {[%clk 0:01:54]} 23. Nc5 {[%clk 0:02:41]}  Rd8 {[%clk 0:01:26]} 24. Kb2 {[%clk 0:02:29]}  f6 {[%clk 0:01:21]} 25. Nxe6 {[%clk 0:02:21]}  fxe5 {[%clk 0:01:12]} 26. Qf2 {[%clk 0:02:00]}  Nbc4+ {[%clk 0:01:02]} 27. Ka2 {[%clk 0:01:57]}  Qa5 {[%clk 0:00:55]} 28. Nxd8 {[%clk 0:01:51]}  Rxd8 {[%clk 0:00:41]} 29. fxe5 {[%clk 0:01:37]}  Qb4 {[%clk 0:00:35]} 30. bxc4 {[%clk 0:01:37]}  Nxc4 {[%clk 0:00:24]} 31. c3 {[%clk 0:01:34]}  Qxa4+ {[%clk 0:00:22]} 32. Kb1 {[%clk 0:01:34]}  Qb3+ {[%clk 0:00:19]} 33. Ka1 {[%clk 0:01:34]}  Qxc3+ {[%clk 0:00:18]} 34. Ka2 {[%clk 0:01:34]}  Qa3+ {[%clk 0:00:16]} 35. Kb1 {[%clk 0:01:33]}  Qb3+ {[%clk 0:00:15]} 36. Ka1 {[%clk 0:01:32]}  Rf8 {[%clk 0:00:10]} 37. Rhf1 {[%clk 0:00:39]}  Rxf3 {[%clk 0:00:08]} 38. Qe2 {[%clk 0:00:16]}  Qa4+ {[%clk 0:00:07]} 39. Qa2 {[%clk 0:00:15]}  Ra3 {[%clk 0:00:06]} 40. Rf2 {[%clk 0:00:15]}  Qxd1# {[%clk 0:00:05]} 0-1


[Site "https://www.chess.com"]

[Event "Titled Tuesday Blitz June 22 2021"]
[White "Kamsky, Gata"]
[Black "Bortnyk, Olexandr"]
[WhiteFideId "2000024"]
[BlackFideId "14120828"]
[WhiteElo "2644"]
[BlackElo "2723"]
[Result "0-1"]
[Round "08"]
[TimeControl "180+1"]
[Date "2021.06.22"]
[WhiteClock "0:00:01"]
[BlackClock "0:00:07"]

1. d4 {[%clk 0:03:00]}  d6 {[%clk 0:02:59]} 2. Nf3 {[%clk 0:03:00]}  Nf6 {[%clk 0:03:00]} 3. Bf4 {[%clk 0:03:00]}  Nbd7 {[%clk 0:03:00]} 4. h3 {[%clk 0:03:00]}  b6 {[%clk 0:03:01]} 5. e3 {[%clk 0:02:58]}  Bb7 {[%clk 0:03:01]} 6. Nbd2 {[%clk 0:02:58]}  e6 {[%clk 0:03:02]} 7. a4 {[%clk 0:02:59]}  a6 {[%clk 0:03:02]} 8. Bh2 {[%clk 0:02:54]}  Be7 {[%clk 0:03:02]} 9. Bd3 {[%clk 0:02:54]}  h6 {[%clk 0:03:02]} 10. c3 {[%clk 0:02:54]}  g5 {[%clk 0:02:50]} 11. Qe2 {[%clk 0:02:45]}  Rg8 {[%clk 0:02:50]} 12. e4 {[%clk 0:02:39]}  Ra7 {[%clk 0:02:39]} 13. Nc4 {[%clk 0:02:37]}  Qa8 {[%clk 0:02:38]} 14. Nfd2 {[%clk 0:02:35]}  d5 {[%clk 0:02:23]} 15. exd5 {[%clk 0:02:32]}  Nxd5 {[%clk 0:02:24]} 16. Rg1 {[%clk 0:01:44]}  Nf4 {[%clk 0:02:17]} 17. Bxf4 {[%clk 0:01:43]}  gxf4 {[%clk 0:02:18]} 18. Be4 {[%clk 0:01:33]}  c5 {[%clk 0:02:08]} 19. Bxb7 {[%clk 0:01:28]}  Qxb7 {[%clk 0:02:07]} 20. Ne4 {[%clk 0:01:18]}  Kf8 {[%clk 0:01:54]} 21. dxc5 {[%clk 0:01:13]}  Nxc5 {[%clk 0:01:50]} 22. Nxc5 {[%clk 0:01:12]}  bxc5 {[%clk 0:01:50]} 23. O-O-O {[%clk 0:00:39]}  Qb3 {[%clk 0:01:36]} 24. a5 {[%clk 0:00:30]}  Qa2 {[%clk 0:00:53]} 25. Kc2 {[%clk 0:00:23]}  Rb7 {[%clk 0:00:50]} 26. Qe4 {[%clk 0:00:15]}  Qb3+ {[%clk 0:00:46]} 27. Kb1 {[%clk 0:00:13]}  Rg5 {[%clk 0:00:19]} 28. Rd3 {[%clk 0:00:08]}  Rf5 {[%clk 0:00:16]} 29. Rgd1 {[%clk 0:00:07]}  Rb5 {[%clk 0:00:16]} 30. f3 {[%clk 0:00:03]}  Bf6 {[%clk 0:00:16]} 31. Kc1 {[%clk 0:00:02]}  Kg7 {[%clk 0:00:14]} 32. R1d2 {[%clk 0:00:01]}  Qa2 {[%clk 0:00:14]} 33. Kc2 {[%clk 0:00:01]}  Qb3+ {[%clk 0:00:12]} 34. Kc1 {[%clk 0:00:01]}  Rg5 {[%clk 0:00:07]} 0-1


[Site "https://www.chess.com"]

[Event "Titled Tuesday Blitz June 22 2021"]
[White "Khubukshanov, Erdem"]
[Black "Mekhitarian, Krikor Sevag"]
[WhiteFideId "54114527"]
[BlackFideId "2107660"]
[WhiteElo "2222"]
[BlackElo "2598"]
[Result "1-0"]
[Round "08"]
[TimeControl "180+1"]
[Date "2021.06.22"]
[WhiteClock "0:00:28"]
[BlackClock "0:00:04"]

1. e4 {[%clk 0:03:00]}  c5 {[%clk 0:02:59]} 2. Nf3 {[%clk 0:03:01]}  g6 {[%clk 0:02:59]} 3. d4 {[%clk 0:02:59]}  cxd4 {[%clk 0:03:00]} 4. Nxd4 {[%clk 0:02:59]}  Nc6 {[%clk 0:02:59]} 5. c4 {[%clk 0:03:00]}  Nf6 {[%clk 0:02:59]} 6. Nc3 {[%clk 0:03:00]}  d6 {[%clk 0:02:59]} 7. f3 {[%clk 0:02:56]}  Nxd4 {[%clk 0:02:59]} 8. Qxd4 {[%clk 0:02:57]}  Bg7 {[%clk 0:02:59]} 9. Be3 {[%clk 0:02:57]}  O-O {[%clk 0:02:59]} 10. Qd2 {[%clk 0:02:57]}  Be6 {[%clk 0:02:55]} 11. Rc1 {[%clk 0:02:50]}  Qa5 {[%clk 0:02:43]} 12. Be2 {[%clk 0:02:42]}  Rfc8 {[%clk 0:02:43]} 13. b3 {[%clk 0:02:41]}  a6 {[%clk 0:02:43]} 14. Na4 {[%clk 0:02:11]}  Qxd2+ {[%clk 0:02:42]} 15. Kxd2 {[%clk 0:02:10]}  Nd7 {[%clk 0:02:42]} 16. h4 {[%clk 0:02:07]}  f5 {[%clk 0:02:15]} 17. exf5 {[%clk 0:02:05]}  gxf5 {[%clk 0:02:13]} 18. Rhe1 {[%clk 0:02:00]}  Be5 {[%clk 0:01:58]} 19. Bg5 {[%clk 0:01:53]}  Bf6 {[%clk 0:01:31]} 20. Bd3 {[%clk 0:01:47]}  Kf7 {[%clk 0:01:12]} 21. Rxe6 {[%clk 0:01:45]}  Kxe6 {[%clk 0:00:53]} 22. Re1+ {[%clk 0:01:44]}  Kf7 {[%clk 0:00:31]} 23. Bxf5 {[%clk 0:01:42]}  Nc5 {[%clk 0:00:31]} 24. Nb6 {[%clk 0:01:33]}  e6 {[%clk 0:00:25]} 25. Nxc8 {[%clk 0:01:13]}  Rxc8 {[%clk 0:00:25]} 26. Bxh7 {[%clk 0:01:12]}  a5 {[%clk 0:00:20]} 27. Bc2 {[%clk 0:01:04]}  Rg8 {[%clk 0:00:14]} 28. f4 {[%clk 0:00:59]}  e5 {[%clk 0:00:14]} 29. Be4 {[%clk 0:00:48]}  Nxe4+ {[%clk 0:00:09]} 30. Rxe4 {[%clk 0:00:49]}  Ke6 {[%clk 0:00:09]} 31. Kd3 {[%clk 0:00:41]}  Kf5 {[%clk 0:00:08]} 32. fxe5 {[%clk 0:00:38]}  Bxg5 {[%clk 0:00:06]} 33. g4+ {[%clk 0:00:34]}  Ke6 {[%clk 0:00:04]} 34. exd6+ {[%clk 0:00:33]}  Kxd6 {[%clk 0:00:05]} 35. hxg5 {[%clk 0:00:33]}  Rxg5 {[%clk 0:00:05]} 36. Ke3 {[%clk 0:00:31]}  Rg8 {[%clk 0:00:04]} 37. Kf4 {[%clk 0:00:30]}  Kc5 {[%clk 0:00:05]} 38. g5 {[%clk 0:00:30]}  Kb4 {[%clk 0:00:04]} 39. Kf5 {[%clk 0:00:30]}  a4 {[%clk 0:00:05]} 40. bxa4 {[%clk 0:00:29]}  Kxa4 {[%clk 0:00:04]} 41. g6 {[%clk 0:00:29]}  Ka3 {[%clk 0:00:04]} 42. Re2 {[%clk 0:00:28]}  Kb4 {[%clk 0:00:04]} 43. Rc2 {[%clk 0:00:28]} 1-0


[Site "https://www.chess.com"]

[Event "Titled Tuesday Blitz June 22 2021"]
[White "Lagarde, Maxime"]
[Black "Demchenko, Anton"]
[WhiteFideId "662399"]
[BlackFideId "4160258"]
[WhiteElo "2630"]
[BlackElo "2593"]
[Result "0-1"]
[Round "08"]
[TimeControl "180+1"]
[Date "2021.06.22"]
[WhiteClock "0:02:00"]
[BlackClock "0:01:54"]

1. d4 {[%clk 0:03:00]}  Nf6 {[%clk 0:03:00]} 2. Nf3 {[%clk 0:03:01]}  g6 {[%clk 0:03:01]} 3. Bg5 {[%clk 0:03:00]}  Bg7 {[%clk 0:03:00]} 4. c3 {[%clk 0:03:00]}  d6 {[%clk 0:03:00]} 5. Nbd2 {[%clk 0:03:01]}  h6 {[%clk 0:02:59]} 6. Bh4 {[%clk 0:03:01]}  O-O {[%clk 0:02:59]} 7. e4 {[%clk 0:03:01]}  c5 {[%clk 0:02:59]} 8. dxc5 {[%clk 0:03:01]}  dxc5 {[%clk 0:03:00]} 9. Be2 {[%clk 0:03:01]}  Nc6 {[%clk 0:03:00]} 10. O-O {[%clk 0:03:01]}  Nh5 {[%clk 0:02:59]} 11. Re1 {[%clk 0:02:57]}  Qc7 {[%clk 0:02:59]} 12. Qc2 {[%clk 0:02:56]}  b6 {[%clk 0:02:59]} 13. Bf1 {[%clk 0:02:52]}  Bb7 {[%clk 0:02:59]} 14. Nc4 {[%clk 0:02:50]}  b5 {[%clk 0:02:20]} 15. Ne3 {[%clk 0:02:47]}  Ne5 {[%clk 0:02:21]} 16. Nd2 {[%clk 0:02:39]}  c4 {[%clk 0:02:18]} 17. Nd5 {[%clk 0:02:29]}  Bxd5 {[%clk 0:02:09]} 18. exd5 {[%clk 0:02:30]}  Rad8 {[%clk 0:01:59]} 19. Qe4 {[%clk 0:02:27]}  f5 {[%clk 0:01:54]} 20. Qc2 {[%clk 0:02:12]}  g5 {[%clk 0:01:53]} 21. Be2 {[%clk 0:02:01]}  Nf4 {[%clk 0:01:53]} 22. Bg3 {[%clk 0:02:00]}  Nxe2+ {[%clk 0:01:53]} 23. Rxe2 {[%clk 0:02:00]}  f4 {[%clk 0:01:54]} 0-1


[Site "https://www.chess.com"]